fUST/lending_fUST_20250817
["ID","MTS","AMOUNT","RATE_DAILY","PERIOD"]
[379885590,1755431467689,-941.24,0.00021704,2]
[379885591,1755431467698,-228.43261,0.00021704,2]
[379885592,1755431467707,-228.43261,0.00021704,2]
[379885593,1755431467716,-396.9245608,0.00021721,2]
[379885594,1755431467726,-1000.0,0.00021721,2]
[379885595,1755431467735,-622.80010316,0.00021721,2]
[379885596,1755431468818,-222.61643756,0.00019279,2]
[379885597,1755431469572,-77.38356244,0.00019279,2]
[379885598,1755431469597,-122.55703133,0.0001928,2]
[379885599,1755431470313,-97.18296867,0.0001928,2]
[379885600,1755431470336,-70.33391363,0.000194,2]
[379885601,1755431471659,-301.76915546,0.000194,2]
[379885602,1755431477985,-231.43524183,0.000194,2]
[379885611,1755431482942,-288.1018512,0.000194,2]
[379885615,1755431484599,-208.54521185,0.000194,2]
[379885623,1755431487478,-165.026036,0.000193,2]
[379885627,1755431489879,-165.026036,0.000193,2]
[379885628,1755431491494,-165.026036,0.000193,2]
[379885629,1755431493872,-17.67582625,0.000193,2]
[379885630,1755431493895,-170.85901888,0.0001931,2]
[379885631,1755431496522,-195.41549437,0.0001931,2]
[379885632,1755431499559,-355.15554427,0.0001931,2]
[379885633,1755431501996,-162.8967231,0.0001931,2]
[379885634,1755431507166,-293.14722076,0.0001931,2]
[379885635,1755431508813,-325.99764144,0.0001931,2]
[379885636,1755431511840,-349.29069034,0.0001931,2]
[379885637,1755431514047,-163.912698,0.0001931,2]
[379885638,1755431517691,-161.83628158,0.0001931,2]
[379885639,1755431519929,-454.96180776,0.0001931,2]
[379885641,1755431525462,-203.09,0.00019297,2]
[379885642,1755431525486,-76.69084685,0.0001931,2]
[379885643,1755431527598,-151.90456186,0.0001931,2]
[379885644,1755431527620,-35.88185443,0.0001931,2]
[379885645,1755431530573,-206.85277924,0.0001931,2]
[379885646,1755431534186,-246.68695741,0.0001931,2]
[379885647,1755431537004,-5.65651692,0.0001931,2]
[379885648,1755431537027,-312.13297513,0.000194,2]
[379885649,1755431540545,-165.02603602,0.000194,2]
[379885650,1755431544568,-186.63622741,0.000194,2]
[379885651,1755431546718,-181.08103901,0.000194,2]
[379885652,1755431546740,-104.97363384,0.00019409,2]
[379885653,1755431550241,-335.86026754,0.00019409,2]
[379885654,1755431550265,-46.96498885,0.00019409,2]
[379885655,1755431553642,-157.81537883,0.00019409,2]
[379885656,1755431556452,-95.21963232,0.00019409,2]
[379885657,1755431556476,-148.83894896,0.00019409,2]
[379885658,1755431559276,-217.4410899,0.00019409,2]
[379885659,1755431562267,-151.90017713,0.0001931,2]
[379885660,1755431568346,-241.34877261,0.00018986,2]
[379885661,1755431570717,-182.62250706,0.00018986,2]
[379885662,1755431571838,-76.02872033,0.00018986,2]
[379885663,1755431573055,-13.12585889,0.0001931,2]
[379885664,1755431573079,-223.00627405,0.00019409,2]
[379885665,1755431575935,-165.9893775,0.00019409,2]
[379885666,1755431579458,-180.92430959,0.00019409,2]
[379885667,1755431579479,-216.45701859,0.00019409,2]
[379885668,1755431581436,-263.54298141,0.00019409,2]
[379885669,1755431581460,-6.63901543,0.0001941,2]
[379885670,1755431586383,-300.0,0.00019409,2]
[379885671,1755431586410,-130.2493648,0.0001941,2]
[379885672,1755431589231,-177.24532336,0.0001941,2]
[379885673,1755431591559,-165.86629641,0.0001941,2]
[379885674,1755431591583,-120.20875576,0.0001941,2]
[379885675,1755431597546,-334.6202925,0.0001941,2]
[379885676,1755431599331,-25.17095174,0.0001941,2]
[379885677,1755431599355,-370.47486896,0.0001941,2]
[379885678,1755431602070,-198.66499897,0.00019409,2]
[379885679,1755431605101,-151.89850841,0.00019409,2]
[379885680,1755431607912,-129.43649262,0.00019409,2]
[379885681,1755431607935,-109.52513104,0.0001941,2]
[379885682,1755431607958,-94.42297665,0.0001941,2]
[379885683,1755431609629,-288.09008906,0.0001941,2]
[379885684,1755431611832,-200.5,0.00019297,2]
[379885685,1755431611854,-16.03967499,0.0001941,2]
[379885687,1755431614632,-170.5846242,0.00019409,2]
[379885688,1755431617731,-155.53904143,0.00019409,2]
[379885689,1755431619484,-153.87633437,0.00019409,2]
[379885690,1755431619505,-78.12366563,0.0001941,2]
[379885691,1755431621166,-3.32359367,0.0001941,2]
[379885692,1755431621191,-176.64597098,0.0001941,2]
[379885693,1755431626419,-300.0,0.0001941,2]
[379885694,1755431629228,-3.35402902,0.0001941,2]
[379885695,1755431629253,-310.71915406,0.0001941,2]
[379885696,1755431631354,-522.66381608,0.00019409,2]
[379885697,1755431635081,-432.50778892,0.00019409,2]
[379885698,1755431637845,-400.308395,0.00019409,2]
[379885699,1755431637869,-101.80911615,0.0001941,2]
[379885700,1755431640596,-67.47172979,0.0001941,2]
[379885701,1755431640688,-95.57584949,0.0001941,2]
[379885702,1755431643998,-300.0,0.00019409,2]
[379885703,1755431644024,-235.9052996,0.0001941,2]
[379885704,1755431647302,-148.51885091,0.0001941,2]
[379885705,1755431647325,-57.200642,0.0001941,2]
[379885706,1755431649612,-180.90390237,0.0001941,2]
[379885707,1755431651477,-241.89545563,0.0001941,2]
[379885708,1755431651511,-12.025995,0.0001941,2]
[379885709,1755431655955,-237.87766997,0.000193,2]
[379885710,1755431658358,-219.61374937,0.000193,2]
[379885711,1755431658384,-47.95044378,0.0001941,2]
[379885712,1755431660689,-212.46351731,0.0001931,2]
[379885713,1755431660722,-23.70743792,0.00019311,2]
[379885714,1755431662920,-172.98712296,0.00019311,2]
[379885715,1755431666749,-15.76895642,0.00019311,2]
[379885716,1755431666771,-284.23104358,0.0001941,2]
[379885717,1755431676371,-151.15445482,0.0001941,2]
[379885718,1755431679294,-200.0,0.00019178,2]
[379885719,1755431686163,-196.33800327,0.00019178,2]
[379885720,1755431689290,-178.66050144,0.00019178,2]
[379885721,1755431691043,-91.00149529,0.00019178,2]
[379885722,1755431691074,-230.33800327,0.00019409,2]
[379885723,1755431694958,-263.50347645,0.00019409,2]
[379885724,1755431697222,-164.67628071,0.00019409,2]
[379885725,1755431701832,-175.48223957,0.0001928,2]
[379885726,1755431706149,-22.46776043,0.0001928,2]
[379885727,1755431706176,-193.97248758,0.00019409,2]
[379885728,1755431710013,-166.40630692,0.00019408,2]
[379885733,1755431788724,-302.60665372,0.00019241,2]
[379885734,1755431793413,-152.0,0.00019241,2]
[379885735,1755431796661,-45.39334628,0.00019241,2]
[379885736,1755431796687,-195.43,0.00019283,2]
[379885737,1755431796713,-127.76735623,0.0001931,2]
[379885738,1755431799818,-214.06859994,0.0001931,2]
[379885739,1755431799840,-3.02440765,0.00019399,2]
[379885740,1755431802194,-203.89076501,0.00019399,2]
[379885743,1755431834348,-196.272922,0.00018986,2]
[379885744,1755431836415,-218.52617498,0.00018986,2]
[379885745,1755431838469,-85.20090302,0.00018986,2]
[379885746,1755431838493,-65.9535518,0.00019308,2]
[379885747,1755431841117,-187.96789883,0.00019308,2]
[379885748,1755431841140,-162.56840612,0.0001931,2]
[379885749,1755431842720,-257.17082808,0.0001931,2]
[379885750,1755431845387,-185.1706466,0.0001931,2]
[379885751,1755431846935,-294.47972331,0.0001931,2]
[379885752,1755431850566,-66.16466022,0.0001931,2]
[379885753,1755431873010,-192.94,0.00019283,2]
[379885755,1755431962820,-179.3206256,0.00019282,2]
[379885756,1755431965545,-11.1693744,0.00019282,2]
[379885759,1755431981775,-161.81774856,0.00017444,2]
[379885762,1755431984424,-18.16425324,0.00017444,2]
[379885763,1755431984447,-191.88637684,0.00019213,2]
[379885768,1755431988359,-190.96017809,0.00019213,2]
[379885769,1755431988382,-103.19745852,0.00019307,2]
[379885770,1755431990407,-319.81271122,0.00019307,2]
[379885771,1755431992496,-339.60183204,0.00019307,2]
[379885772,1755431995824,-90.61238102,0.00019307,2]
[379885774,1755432050814,-215.23030872,0.00018408,2]
[379885775,1755432052966,-98.83700188,0.00018408,2]
[379885776,1755432052988,-151.15445482,0.00019207,2]
[379885777,1755432053014,-92.27866477,0.00019283,2]
[379885778,1755432055718,-95.78133523,0.00019283,2]
[379885779,1755432055741,-225.83644242,0.000194,3]
[379885780,1755432058288,-190.93571439,0.000194,3]
[379885785,1755432061944,-8.58784319,0.000194,3]
[379885786,1755432064099,-154.84455189,0.000194,3]
[379885787,1755432064133,166.55,0.00014384,2]
[379885788,1755432066859,-195.57392048,0.000194,3]
[379885790,1755432069430,-216.73152763,0.000194,3]
[379885792,1755432104999,-264.8392317,0.000194,3]
[379885793,1755432106674,-227.89063745,0.00019328,2]
[379885794,1755432106699,-30.23314634,0.000194,3]
[379885795,1755432110232,-165.93516691,0.000194,3]
[379885796,1755432112382,-11.61245505,0.000194,3]
[379885797,1755432112409,-226.34153685,0.000194,3]
[379885798,1755432139974,-153.56351032,0.00019307,2]
[379885799,1755432144531,-180.18728878,0.00019307,2]
[379885800,1755432146851,-151.15445482,0.00019307,2]
[379885801,1755432150224,-183.34012979,0.00019307,2]
[379885802,1755432152756,-298.12008028,0.00019307,2]
[379885803,1755432155821,-162.54304105,0.0001924,2]
[379885804,1755432155844,-2.67742134,0.00019307,2]
[379885805,1755432159490,-286.46223828,0.00019307,2]
[379885806,1755432166200,-151.0,0.00019307,2]
[379885807,1755432168392,-238.66734729,0.00019307,2]
[379885808,1755432171525,-368.1686374,0.00019307,2]
[379885809,1755432173169,-295.76916828,0.00019307,2]
[379885810,1755432175874,-151.0,0.00019307,2]
[379885811,1755432177855,-364.12436747,0.00019307,2]
[379885812,1755432179680,-240.363146,0.00019307,2]
[379885813,1755432179705,-121.75069458,0.0001934,2]
[379885814,1755432182457,-63.91930542,0.0001934,2]
[379885817,1755432221825,-207.08681169,0.00019293,2]
[379885818,1755432225052,-95.51984203,0.00019293,2]
[379885819,1755432228545,183.31,0.00019288,2]
[379885820,1755432240020,-207.1318181,0.000193,2]
[379885821,1755432245396,-101.39439194,0.000193,2]
[379885822,1755432287886,-480.0,0.00018986,2]
[379885823,1755432316517,-20.0,0.00018986,2]
[379885824,1755432316544,-160.97,0.00019289,2]
[379885829,1755432421525,-151.0,0.000189,2]
[379885830,1755432448527,714.900024,0.00013699,2]
[379885838,1755432543341,-0.92709163,0.000189,2]
[379885839,1755432543366,-252.51949924,0.00019,2]
[379885840,1755432546580,-347.43249248,0.00019,2]
[379885841,1755432554588,-317.21816095,0.00019,2]
[379885842,1755432557224,-224.62131133,0.00019,2]
[379885843,1755432560829,-649.09952775,0.00019,2]
[379885844,1755432564135,-207.86366708,0.00019,2]
[379885845,1755432566292,-226.28375376,0.00019,2]
[379885846,1755432567868,-234.63103739,0.00019,2]
[379885847,1755432571097,-300.0,0.00019,2]
[379885848,1755432573970,-263.64364614,0.00019,2]
[379885849,1755432576084,-158.46569008,0.00019,2]
[379885850,1755432578637,-298.64208696,0.00019,2]
[379885852,1755432580742,-254.62464828,0.00019,2]
[379885853,1755432582893,-166.75668753,0.00019,2]
[379885854,1755432586015,-151.0,0.00019,2]
[379885855,1755432588233,-207.0137164,0.00019,2]
[379885856,1755432590858,-187.41557551,0.00019,2]
[379885857,1755432595142,-164.87774405,0.00019,2]
[379885858,1755432596687,-151.16580636,0.00019,2]
[379885859,1755432600974,-168.95489268,0.00019,2]
[379885862,1755432631838,-300.0,0.00018999,2]
[379885863,1755432631848,-171.98987529,0.00018999,2]
[379885864,1755432631867,-128.01012471,0.00018999,2]
[379885865,1755432631877,-300.0,0.00018999,2]
[379885866,1755432631887,-300.0,0.00018999,2]
[379885867,1755432631897,-300.0,0.00018999,2]
[379885868,1755432631907,-1200.0,0.00018999,2]
[379885869,1755432631916,-2934.3081411,0.00019,2]
[379885870,1755432631928,-522.32389176,0.00019,2]
[379885889,1755432637802,-37616.728785,0.00019,2]
[379885890,1755432637812,-2544.88374226,0.00019191,2]
[379885891,1755432637821,-187.24,0.00019291,2]
[379885892,1755432637830,-285.97,0.00019395,3]
[379885893,1755432637840,-1143.9,0.00019396,3]
[379885894,1755432637849,-355.32165123,0.00019396,3]
[379885895,1755432637912,-216.62834877,0.00019396,3]
[379885896,1755432637922,-857.96,0.00019396,3]
[379885897,1755432637931,-2287.8,0.00019397,3]
[379885898,1755432637940,-9.96846315,0.000194,3]
[379885899,1755432637956,-708.97,0.000194,3]
[379885900,1755432637989,-266.22,0.000194,3]
[379885901,1755432637999,-480.0,0.00019402,2]
[379885902,1755432638009,-500.0,0.00019402,2]
[379885903,1755432638018,-500.0,0.00019402,2]
[379885904,1755432638027,-158.97790867,0.00019402,2]
[379885905,1755432638037,-500.0,0.00019402,2]
[379885906,1755432638046,-200.05261155,0.00019402,2]
[379885907,1755432638055,-500.0,0.00019402,2]
[379885908,1755432638064,-294.11830118,0.00019402,2]
[379885909,1755432638073,-500.0,0.00019402,2]
[379885910,1755432638082,-500.0,0.00019402,2]
[379885911,1755432638091,-500.0,0.00019402,2]
[379885912,1755432638101,-172.44069724,0.00019402,2]
[379885913,1755432638110,-500.0,0.00019402,2]
[379885914,1755432638119,-500.0,0.00019402,2]
[379885915,1755432638128,-212.39016848,0.00019402,2]
[379885916,1755432638137,-500.0,0.00019402,2]
[379885917,1755432638147,-500.0,0.00019402,2]
[379885918,1755432638156,-500.0,0.00019402,2]
[379885919,1755432638166,-500.0,0.00019402,2]
[379885920,1755432638175,-500.0,0.00019402,2]
[379885921,1755432638184,-500.0,0.00019402,2]
[379885922,1755432638194,-500.0,0.00019402,2]
[379885923,1755432638203,-500.0,0.00019402,2]
[379885924,1755432638213,-500.0,0.00019402,2]
[379885925,1755432638222,-500.0,0.00019402,2]
[379885926,1755432638231,-500.0,0.00019402,2]
[379885927,1755432638240,-500.0,0.00019402,2]
[379885928,1755432638250,-500.0,0.00019402,2]
[379885929,1755432638259,-500.0,0.00019402,2]
[379885930,1755432638268,-500.0,0.00019402,2]
[379885931,1755432638277,-500.0,0.00019402,2]
[379885932,1755432638286,-488.72879893,0.00019402,2]
[379885933,1755432638296,-500.0,0.00019402,2]
[379885934,1755432638305,-500.0,0.00019402,2]
[379885935,1755432638316,-500.0,0.00019402,2]
[379885936,1755432638326,-500.0,0.00019402,2]
[379885937,1755432638339,-500.0,0.00019402,2]
[379885938,1755432638349,-500.0,0.00019402,2]
[379885939,1755432638358,-500.0,0.00019402,2]
[379885940,1755432638367,-500.0,0.00019402,2]
[379885941,1755432638376,-500.0,0.00019402,2]
[379885942,1755432638387,-500.0,0.00019402,2]
[379885943,1755432638396,-500.0,0.00019402,2]
[379885944,1755432638406,-500.0,0.00019402,2]
[379885945,1755432638418,-500.0,0.00019402,2]
[379885946,1755432638433,-500.0,0.00019402,2]
[379885947,1755432638444,-500.0,0.00019402,2]
[379885948,1755432638453,-500.0,0.00019402,2]
[379885949,1755432638462,-500.0,0.00019402,2]
[379885950,1755432638472,-500.0,0.00019402,2]
[379885951,1755432638481,-500.0,0.00019402,2]
[379885952,1755432638490,-213.1718558,0.00019402,2]
[379885953,1755432638499,-500.0,0.00019402,2]
[379885954,1755432638509,-500.0,0.00019402,2]
[379885955,1755432638519,-500.0,0.00019402,2]
[379885956,1755432638529,-500.0,0.00019402,2]
[379885957,1755432638538,-500.0,0.00019402,2]
[379885958,1755432638547,-500.0,0.00019402,2]
[379885959,1755432638556,-500.0,0.00019402,2]
[379885960,1755432638567,-500.0,0.00019402,2]
[379885961,1755432638576,-500.0,0.00019402,2]
[379885962,1755432638585,-500.0,0.00019402,2]
[379885963,1755432638596,-500.0,0.00019402,2]
[379885964,1755432638605,-500.0,0.00019402,2]
[379885965,1755432638615,-500.0,0.00019402,2]
[379885966,1755432638625,-500.0,0.00019402,2]
[379885967,1755432638636,-500.0,0.00019402,2]
[379885968,1755432638645,-529.0,0.00019403,2]
[379885969,1755432638654,-480.0,0.00019403,2]
[379885970,1755432638664,-480.0,0.00019403,2]
[379885971,1755432638674,-1499.65,0.00019403,2]
[379885972,1755432638683,-998.80143827,0.00019403,2]
[379885973,1755432638692,-50000.0,0.00019403,2]
[379885974,1755432638702,-1053.83,0.00019405,2]
[379885975,1755432638712,-480.0,0.00019405,2]
[379885976,1755432638721,-480.0,0.00019405,2]
[379885977,1755432638730,-510.83,0.00019405,2]
[379885978,1755432638739,-480.0,0.00019405,2]
[379885979,1755432638748,-480.0,0.00019405,2]
[379885980,1755432638758,-1350.16,0.00019405,2]
[379885981,1755432638767,-1942.59,0.00019405,2]
[379885982,1755432638776,-480.0,0.00019405,2]
[379885983,1755432638786,-1202.01,0.00019405,2]
[379885984,1755432638795,-480.0,0.00019405,2]
[379885985,1755432638804,-480.0,0.00019405,2]
[379885986,1755432638814,-600.24,0.00019405,2]
[379885987,1755432638823,-480.0,0.00019405,2]
[379885988,1755432638833,-841.63,0.00019405,2]
[379885989,1755432638842,-480.0,0.00019405,2]
[379885990,1755432638851,-480.0,0.00019406,2]
[379885991,1755432638861,-480.0,0.00019406,2]
[379885992,1755432638870,-3081.23,0.00019406,2]
[379885993,1755432638879,-500.0,0.00019406,2]
[379885994,1755432638888,-336.99876751,0.00019406,2]
[379885995,1755432638898,-500.0,0.00019406,2]
[379885996,1755432638907,-500.0,0.00019407,2]
[379885997,1755432638916,-500.0,0.00019407,2]
[379885998,1755432638927,-500.0,0.00019407,2]
[379885999,1755432638936,-500.0,0.00019407,2]
[379886000,1755432638945,-500.0,0.00019407,2]
[379886001,1755432638954,-500.0,0.00019407,2]
[379886002,1755432638963,-500.0,0.00019407,2]
[379886003,1755432638973,-500.0,0.00019407,2]
[379886004,1755432638982,-480.0,0.00019407,2]
[379886005,1755432638992,-480.0,0.00019407,2]
[379886006,1755432639001,-480.0,0.00019407,2]
[379886007,1755432639011,-480.0,0.00019407,2]
[379886008,1755432639020,-480.0,0.00019407,2]
[379886009,1755432639031,-480.0,0.00019407,2]
[379886010,1755432639041,-480.0,0.00019407,2]
[379886011,1755432639050,-466.05728696,0.00019407,2]
[379886012,1755432639059,-480.0,0.00019407,2]
[379886013,1755432639068,-480.0,0.00019407,2]
[379886014,1755432639077,-480.0,0.00019407,2]
[379886015,1755432639087,-480.0,0.00019407,2]
[379886016,1755432639097,-460.97367029,0.00019407,2]
[379886017,1755432639106,-480.0,0.00019407,2]
[379886018,1755432639116,-480.0,0.00019407,2]
[379886019,1755432639125,-408.87469425,0.00019407,2]
[379886020,1755432639134,-463.0248548,0.00019407,2]
[379886021,1755432639144,-466.23268704,0.00019407,2]
[379886022,1755432639153,-480.0,0.00019407,2]
[379886023,1755432639162,-480.0,0.00019407,2]
[379886024,1755432639172,-235.69903153,0.00019407,2]
[379886025,1755432639181,-480.0,0.00019407,2]
[379886026,1755432639191,-480.0,0.00019407,2]
[379886027,1755432639200,-480.0,0.00019407,2]
[379886028,1755432639209,-365.45277753,0.00019407,2]
[379886029,1755432639219,-480.0,0.00019407,2]
[379886030,1755432639229,-480.0,0.00019407,2]
[379886031,1755432639238,-464.28484874,0.00019407,2]
[379886032,1755432639248,-480.0,0.00019407,2]
[379886033,1755432639257,-480.0,0.00019407,2]
[379886034,1755432639267,-480.0,0.00019407,2]
[379886035,1755432639277,-480.0,0.00019407,2]
[379886037,1755432639286,-480.0,0.00019407,2]
[379886039,1755432639295,-173.03903894,0.00019407,2]
[379886041,1755432639305,-480.0,0.00019407,2]
[379886043,1755432639314,-480.0,0.00019407,2]
[379886045,1755432639323,-460.0,0.00019407,2]
[379886047,1755432639340,-480.0,0.00019407,2]
[379886050,1755432639349,-259.56278345,0.00019407,2]
[379886052,1755432639359,-465.0670338,0.00019407,2]
[379886053,1755432639368,-460.0,0.00019407,2]
[379886056,1755432639379,-480.0,0.00019407,2]
[379886059,1755432639388,-480.0,0.00019407,2]
[379886061,1755432639397,-480.0,0.00019407,2]
[379886062,1755432639407,-460.0,0.00019407,2]
[379886064,1755432639419,-480.0,0.00019407,2]
[379886066,1755432639428,-480.0,0.00019407,2]
[379886068,1755432639437,-480.0,0.00019407,2]
[379886070,1755432639447,-460.0,0.00019407,2]
[379886072,1755432639456,-460.40062225,0.00019407,2]
[379886074,1755432639469,-480.0,0.00019407,2]
[379886076,1755432639479,-462.47985447,0.00019407,2]
[379886078,1755432639488,-480.0,0.00019407,2]
[379886080,1755432639497,-500.0,0.00019407,2]
[379886082,1755432639507,-480.0,0.00019407,2]
[379886084,1755432639517,-480.0,0.00019407,2]
[379886086,1755432639526,-480.0,0.00019407,2]
[379886088,1755432639535,-480.0,0.00019407,2]
[379886090,1755432639544,-480.0,0.00019407,2]
[379886092,1755432639554,-460.0,0.00019407,2]
[379886094,1755432639563,-480.0,0.00019407,2]
[379886096,1755432639573,-480.0,0.00019407,2]
[379886098,1755432639582,-480.0,0.00019407,2]
[379886100,1755432639596,-480.0,0.00019407,2]
[379886102,1755432639606,-480.0,0.00019407,2]
[379886104,1755432639615,-1066.29,0.00019407,2]
[379886106,1755432639624,-494.92,0.00019407,2]
[379886108,1755432639633,-480.0,0.00019407,2]
[379886110,1755432639642,-480.0,0.00019407,2]
[379886111,1755432639651,-480.0,0.00019407,2]
[379886113,1755432639661,-480.0,0.00019407,2]
[379886115,1755432639671,-480.0,0.00019407,2]
[379886117,1755432639680,-460.0,0.00019407,2]
[379886119,1755432639689,-460.0,0.00019407,2]
[379886121,1755432639700,-480.0,0.00019407,2]
[379886123,1755432639709,-460.0,0.00019407,2]
[379886125,1755432639718,-480.0,0.00019407,2]
[379886127,1755432639727,-480.0,0.00019407,2]
[379886129,1755432639736,-480.0,0.00019407,2]
[379886131,1755432639746,-480.0,0.00019407,2]
[379886133,1755432639755,-440.0,0.00019407,2]
[379886135,1755432639764,-480.0,0.00019407,2]
[379886137,1755432639773,-480.0,0.00019407,2]
[379886138,1755432639782,-480.0,0.00019407,2]
[379886140,1755432639791,-480.0,0.00019407,2]
[379886142,1755432639801,-460.0,0.00019407,2]
[379886144,1755432639810,-480.0,0.00019407,2]
[379886146,1755432639819,-480.0,0.00019407,2]
[379886148,1755432639828,-480.0,0.00019407,2]
[379886150,1755432639836,-480.0,0.00019407,2]
[379886152,1755432639846,-480.0,0.00019407,2]
[379886154,1755432639855,-500.0,0.00019407,2]
[379886156,1755432639864,-480.0,0.00019407,2]
[379886158,1755432639874,-480.0,0.00019407,2]
[379886159,1755432639883,-480.0,0.00019407,2]
[379886161,1755432639892,-460.82280223,0.00019407,2]
[379886163,1755432639902,-480.0,0.00019407,2]
[379886165,1755432639911,-480.0,0.00019407,2]
[379886167,1755432639922,-480.0,0.00019407,2]
[379886169,1755432639934,-480.0,0.00019407,2]
[379886171,1755432639951,-480.0,0.00019407,2]
[379886173,1755432639960,-345.1680176,0.00019407,2]
[379886175,1755432639969,-480.0,0.00019407,2]
[379886177,1755432639979,-480.0,0.00019407,2]
[379886179,1755432639988,-480.0,0.00019407,2]
[379886181,1755432639997,-480.0,0.00019407,2]
[379886183,1755432640007,-480.0,0.00019407,2]
[379886184,1755432640016,-784.47,0.00019407,2]
[379886186,1755432640026,-480.0,0.00019407,2]
[379886188,1755432640036,-480.0,0.00019407,2]
[379886190,1755432640045,-480.0,0.00019407,2]
[379886192,1755432640055,-2330.91,0.00019407,2]
[379886194,1755432640064,-480.0,0.00019407,2]
[379886196,1755432640073,-480.0,0.00019407,2]
[379886198,1755432640083,-547.81,0.00019407,2]
[379886200,1755432640092,-480.0,0.00019407,2]
[379886202,1755432640101,-480.0,0.00019407,2]
[379886204,1755432640110,-480.0,0.00019407,2]
[379886206,1755432640119,-480.0,0.00019407,2]
[379886208,1755432640128,-480.0,0.00019407,2]
[379886210,1755432640137,-421.18079441,0.00019407,2]
[379886212,1755432640146,-480.0,0.00019407,2]
[379886214,1755432640155,-460.0,0.00019407,2]
[379886216,1755432640164,-480.0,0.00019407,2]
[379886218,1755432640174,-480.0,0.00019407,2]
[379886220,1755432640183,-480.0,0.00019407,2]
[379886222,1755432640193,-480.17616106,0.00019407,2]
[379886223,1755432640202,-480.0,0.00019407,2]
[379886225,1755432640210,-480.0,0.00019407,2]
[379886227,1755432640219,-480.0,0.00019407,2]
[379886229,1755432640229,-480.0,0.00019407,2]
[379886231,1755432640238,-480.0,0.00019407,2]
[379886233,1755432640247,-480.0,0.00019407,2]
[379886235,1755432640256,-500.0,0.00019407,2]
[379886237,1755432640266,-480.0,0.00019407,2]
[379886239,1755432640275,-480.0,0.00019407,2]
[379886241,1755432640285,-480.0,0.00019407,2]
[379886243,1755432640294,-480.0,0.00019407,2]
[379886245,1755432640303,-430.41354692,0.00019407,2]
[379886247,1755432640312,-480.0,0.00019407,2]
[379886249,1755432640321,-480.0,0.00019407,2]
[379886251,1755432640331,-480.0,0.00019407,2]
[379886253,1755432640344,-480.0,0.00019407,2]
[379886255,1755432640354,-480.0,0.00019407,2]
[379886257,1755432640363,-480.0,0.00019407,2]
[379886259,1755432640372,-480.0,0.00019407,2]
[379886261,1755432640381,-351.01497511,0.00019407,2]
[379886263,1755432640390,-480.0,0.00019407,2]
[379886264,1755432640399,-480.0,0.00019407,2]
[379886266,1755432640409,-156.87922233,0.00019407,2]
[379886268,1755432640418,-480.0,0.00019407,2]
[379886270,1755432640429,-480.0,0.00019407,2]
[379886272,1755432640438,-480.0,0.00019407,2]
[379886274,1755432640449,-480.0,0.00019407,2]
[379886276,1755432640459,-480.0,0.00019407,2]
[379886278,1755432640469,-480.0,0.00019407,2]
[379886280,1755432640478,-480.0,0.00019407,2]
[379886282,1755432640488,-532.05517769,0.00019407,2]
[379886284,1755432640497,-462.29727354,0.00019407,2]
[379886286,1755432640507,-401.42581393,0.00019407,2]
[379886288,1755432640516,-480.0,0.00019407,2]
[379886290,1755432640525,-480.0,0.00019407,2]
[379886292,1755432640534,-480.0,0.00019407,2]
[379886294,1755432640544,-460.0,0.00019407,2]
[379886296,1755432640553,-233.14735997,0.00019407,2]